bitfinex/quotes_ETHUSD_20241101
["timestamp","ask_amount","ask_price","bid_price","bid_amount"]
[1730425700149,0.55,2520.8,2520.3,0.9879]
[1730425700335,0.55,2520.8,2520.2,4.2641533]
[1730425700534,0.55,2520.8,2520.1,0.92412347]
[1730425700535,0.55,2520.5,2520.1,0.92412347]
[1730425700847,0.9774,2520.9,2520.4,3.96762]
[1730425701059,0.55,2520.8,2520.2,0.07935033]
[1730425701375,0.55,2520.8,2520.4,3.96762]
[1730425701670,4.51702,2520.8,2520.2,8.13488738]
[1730425701834,0.55,2520.8,2520.2,4.16697738]
[1730425702032,0.55,2520.8,2520.5,3.96745]
[1730425702333,0.55,2520.6,2520.2,0.19913738]
[1730425703034,0.55,2520.4,2520.2,0.19913738]
[1730425703230,0.55,2520.4,2519.9,3.96834]
[1730425703571,0.55,2520.4,2520.0,3.96818]
[1730425704355,0.55,2520.4,2519.9,3.96832]
[1730425704556,0.55,2520.4,2519.9,3.96831]
[1730425704861,0.55,2520.4,2519.9,7.93662]
[1730425705163,0.55,2520.6,2520.4,3.96757]
[1730425705386,0.55,2520.6,2520.2,3.96792]
[1730425705742,0.55,2520.6,2520.1,0.07934745]
[1730425705743,0.55,2520.6,2520.1,3.96808]
[1730425706071,4.51739,2520.6,2520.0,8.729982]
[1730425706275,0.55,2520.3,2519.9,3.0]
[1730425706980,0.55,2520.4,2519.9,3.0]
[1730425707188,5.50114,2520.2,2519.7,0.9879]
[1730425707397,1.5332,2520.2,2519.6,3.96877]
[1730425707675,1.5332,2520.2,2519.6,4.365647]
[1730425707676,5.50122,2520.2,2519.6,4.365647]
[1730425708355,3.96867,2519.8,2519.6,0.396877]
[1730425708554,3.96867,2519.8,2519.4,1.0146]
[1730425708758,1.5529,2519.7,2519.1,3.96961]
[1730425709113,0.55,2519.5,2518.9,0.973]
[1730425709273,0.55,2519.5,2518.7,3.9703]
[1730425709486,0.55,2519.3,2518.8,0.07939451]
[1730425709777,0.55,2519.3,2519.0,3.96981]
[1730425710476,0.55,2519.3,2518.9,3.96998]
[1730425710978,0.55,2519.3,2518.8,3.97001]
[1730425711387,0.55,2519.3,2518.7,0.49518]
[1730425711585,0.55,2519.0,2518.4,3.97071]
[1730425711877,0.55,2518.8,2518.4,4.862921]
[1730425712389,0.55,2518.8,2518.4,4.862871]
[1730425712540,0.55,2518.8,2518.4,4.862861]
[1730425713153,0.55,2518.8,2518.4,8.833521]
[1730425713382,0.55,2518.8,2518.4,4.862861]
[1730425714082,0.41411544,2519.0,2518.6,3.97045]
[1730425714247,0.41411544,2519.0,2518.6,7.9408]
[1730425714447,0.41411544,2519.0,2518.8,3.97014]
[1730425715458,0.41411544,2519.0,2518.7,3.97029]
[1730425715659,0.41411544,2519.0,2518.7,4.82279461]
[1730425715858,0.41411544,2519.0,2518.7,4.90219262]
[1730425716267,0.96411544,2519.0,2518.9,3.96998]
[1730425716468,0.41411544,2519.0,2518.9,3.96998]
[1730425716671,0.55,2519.2,2518.8,0.9891]
[1730425716873,0.55,2519.2,2518.8,4.95914]
[1730425717048,0.55,2519.4,2518.9,4.465854]
[1730425717500,1.37799078,2519.5,2519.1,3.96966]
[1730425717788,1.37799078,2519.5,2519.3,3.96931]
[1730425717949,1.37799078,2519.5,2519.3,7.93853]
[1730425718382,1.37799078,2519.5,2519.3,3.96922]
[1730425718762,0.41409078,2519.5,2519.3,4.763103]
[1730425718966,4.97914,2520.1,2519.5,3.96899]
[1730425719284,0.4140237,2519.9,2519.5,3.96899]
[1730425719653,3.96868,2519.8,2519.2,0.9326]
[1730425719850,0.4140237,2519.9,2519.2,0.9326]
[1730425720083,0.4140237,2519.9,2519.4,3.9691]
[1730425720252,0.55,2519.8,2519.6,3.96879]
[1730425720569,0.55,2519.8,2519.6,3.96878]
[1730425720954,0.55,2519.8,2519.7,3.96872]
[1730425721385,0.55,2519.8,2519.4,3.9691]
[1730425721689,0.55,2519.8,2519.5,3.96901]
[1730425721853,0.4140237,2519.9,2519.7,3.96872]
[1730425722055,1.011,2520.1,2519.8,3.96856]
[1730425722255,1.011,2520.1,2519.9,3.96834]
[1730425722471,0.41399159,2520.3,2519.9,0.79369]
[1730425722757,0.41399159,2520.3,2520.1,3.96798]
[1730425723091,0.41399159,2520.3,2520.2,3.96793]
[1730425723396,0.41399159,2520.3,2519.9,8.73032]
[1730425723699,0.41399159,2520.3,2519.9,4.762]
[1730425723868,0.41399159,2520.3,2519.9,3.96831]
[1730425724067,0.41399159,2520.3,2519.9,7.93662]
[1730425724268,0.41399159,2520.3,2519.9,3.96831]
[1730425724596,0.41399159,2520.3,2520.0,3.96822]
[1730425725185,0.55,2520.2,2519.8,3.96852]
[1730425725364,0.55,2520.2,2519.8,4.855495]
[1730425726084,0.55,2520.2,2519.9,3.96838]
[1730425726281,0.55,2520.2,2519.8,0.886975]
[1730425726687,0.55,2520.2,2519.8,4.855445]
[1730425727070,0.958,2520.1,2518.9,5.47523359]
[1730425727388,4.51889,2519.6,2519.0,3.96972]
[1730425727588,0.55,2519.6,2518.8,3.97005]
[1730425727770,3.96904,2519.5,2518.9,4.366865]
[1730425727979,0.55,2519.4,2519.0,3.96982]
[1730425728192,4.51922,2519.4,2518.9,0.397005]
[1730425728505,4.51905,2519.5,2518.9,4.366975]
[1730425728667,0.55,2519.5,2519.0,3.96982]
[1730425729003,0.55,2519.5,2518.8,3.97002]
[1730425729183,0.55,2519.3,2518.9,3.96993]
[1730425729599,0.55,2519.4,2518.9,3.96993]
[1730425729764,0.55,2519.4,2519.0,3.96971]
[1730425730472,4.51928,2519.4,2518.8,3.97005]
[1730425730902,3.96938,2519.3,2518.8,3.97005]
[1730425731100,4.51928,2519.4,2518.8,3.97005]
[1730425731101,8.48863,2519.4,2518.8,3.97005]
[1730425731262,0.55,2519.2,2518.8,3.97005]
[1730425731625,3.96936,2519.3,2518.8,3.97005]
[1730425731626,0.55,2519.3,2518.8,4.861624]
[1730425731897,4.51937,2519.3,2518.8,4.861624]
[1730425732192,0.55,2519.3,2518.6,4.94578]
[1730425732362,0.958,2519.5,2518.7,3.97027]
[1730425732363,0.55,2519.1,2518.7,3.97027]
[1730425732562,0.55,2519.1,2518.6,4.94578]
[1730425732783,0.55,2519.3,2518.8,3.97013]
[1730425732989,4.51939,2519.3,2518.8,3.97013]
[1730425733868,4.51939,2519.3,2518.6,8.91611]
[1730425733869,3.96952,2519.2,2518.6,8.91611]
[1730425734069,0.55,2519.1,2518.6,6.137351]
[1730425734480,0.55,2519.3,2518.8,3.97013]
[1730425734696,0.55,2519.3,2518.8,7.94018]
[1730425735269,0.55,2519.3,2518.8,3.97005]
[1730425735708,0.55,2519.1,2518.6,5.161991]
[1730425735982,0.55,2519.1,2518.2,3.971]
[1730425735983,0.55,2518.7,2518.2,3.971]
[1730425736185,4.52032,2518.7,2518.2,3.971]
[1730425736388,0.958,2518.5,2518.3,3.9709]
[1730425736706,0.55,2518.4,2518.1,3.97111]
[1730425736907,0.55,2518.4,2517.9,3.97143]
[1730425737215,0.55,2518.4,2518.0,3.97138]
[1730425737686,0.55,2518.4,2518.1,3.97112]
[1730425738023,0.958,2518.5,2517.8,3.97172]
[1730425738024,0.55,2518.5,2518.4,3.97077]
[1730425738510,0.55,2518.6,2518.4,3.97077]
[1730425738710,1.33659452,2518.7,2518.5,4.367687]
[1730425738921,0.9226,2519.0,2518.7,3.97025]
[1730425739478,0.9226,2519.0,2518.8,3.9701]
[1730425739678,0.41396974,2519.1,2518.8,3.9701]
[1730425740413,0.41396974,2519.1,2518.6,0.9667]
[1730425740600,0.55,2519.0,2518.6,0.9667]
[1730425740803,0.55,2519.0,2518.7,4.5037287]
[1730425741004,0.55,2519.0,2518.7,4.5036387]
[1730425741321,0.55,2519.0,2518.9,3.96998]
[1730425741494,0.55,2519.0,2518.8,3.97013]
[1730425742815,0.55,2519.0,2518.7,4.5036787]
[1730425743035,0.55,2518.8,2518.1,0.82682945]
[1730425743349,0.9243,2518.9,2518.2,3.971]
[1730425743350,0.55,2518.6,2518.2,3.971]
[1730425743498,0.55,2518.7,2518.2,7.94198]
[1730425743846,0.55,2518.7,2518.2,3.97098]
[1730425744003,0.55,2518.7,2518.2,7.94195]
[1730425744198,0.55,2518.8,2518.3,0.07941659]
[1730425744738,0.55,2518.8,2518.5,3.9705]
[1730425744899,0.55,2518.8,2518.7,3.9703]
[1730425745102,0.55,2518.8,2518.6,3.97045]
[1730425745326,0.55,2518.8,2518.4,3.97067]
[1730425745627,0.55,2518.8,2518.5,3.97059]
[1730425746112,0.55,2518.8,2518.4,4.367737]
[1730425746533,0.55,2518.8,2518.5,3.97059]
[1730425746741,0.55,2518.8,2518.6,3.97045]
[1730425746954,0.55,2518.8,2518.2,3.97101]
[1730425747233,0.55,2518.8,2518.3,4.75068394]
[1730425747433,0.55,2518.6,2518.2,3.97106]
[1730425747667,3.97073,2518.5,2518.0,0.82682945]
[1730425747946,3.97073,2518.5,2517.7,0.9339]
[1730425747947,0.55,2518.2,2517.7,3.97186]
[1730425748146,3.97135,2518.1,2517.6,3.97195]
[1730425748300,0.55,2518.0,2517.5,3.9721]
[1730425748503,0.55,2518.0,2517.5,4.94260895]
[1730425748697,0.9441,2517.9,2517.5,0.97050895]
[1730425748944,0.9441,2517.9,2517.4,3.97225]
[1730425749196,0.9441,2517.9,2517.4,4.38502125]
[1730425749419,0.9441,2517.9,2517.4,8.35729125]
[1730425749654,0.55,2517.8,2517.4,4.38502125]
[1730425750001,0.55,2517.8,2517.4,0.41277125]
[1730425750223,4.52174,2517.8,2517.4,0.41277125]
[1730425750641,0.55,2517.6,2517.4,0.41277125]
[1730425750824,1.5366,2517.5,2517.0,4.0957719]
[1730425751139,3.97174,2517.8,2517.2,3.97252]
[1730425751140,0.9866,2517.8,2517.2,3.97252]
[1730425751332,0.9866,2517.8,2517.5,3.97207]
[1730425751514,1.5033,2518.1,2517.7,3.97187]
[1730425751715,0.9533,2518.1,2517.7,4.368977]
[1730425751921,3.9714,2518.0,2517.7,0.397187]
[1730425752144,0.9533,2518.1,2517.7,0.397187]
[1730425752319,0.9533,2518.1,2517.7,4.369037]
[1730425753357,0.9533,2518.1,2517.7,0.397187]
[1730425753556,0.55,2518.0,2517.6,3.97197]
[1730425753747,0.55,2518.0,2517.7,3.97177]
[1730425753943,0.55,2518.0,2517.8,3.97162]
[1730425754319,0.55,2518.0,2517.7,3.97177]
[1730425754920,0.55,2518.0,2517.7,3.9718]
[1730425755121,0.55,2518.0,2517.7,7.94359]
[1730425755357,0.55,2518.0,2517.8,3.97169]
[1730425756468,0.55,2518.0,2517.9,3.97156]
[1730425756639,0.41395782,2518.2,2518.1,3.97124]
[1730425757425,3.97017,2518.8,2518.3,3.97086]
[1730425757621,0.9577,2518.9,2518.3,3.97086]
[1730425757622,0.9577,2518.9,2518.3,3.97084]
[1730425757823,0.41392905,2518.6,2518.4,3.97066]
[1730425758056,0.9577,2518.5,2517.7,3.97177]
[1730425758234,0.9577,2518.5,2517.7,7.94356]
[1730425758235,0.9577,2518.2,2517.7,7.94356]
[1730425758439,0.9577,2518.2,2517.7,3.97177]
[1730425758765,0.55,2518.1,2517.7,3.97177]
[1730425758969,0.55,2518.1,2517.7,4.766158]
[1730425759165,0.55,2518.1,2517.9,3.9714]
[1730425760422,0.9577,2518.2,2518.0,3.9713]
[1730425760627,0.55,2518.4,2518.3,3.97093]
[1730425763961,0.55,2518.4,2518.0,7.94262]
[1730425764209,0.55,2518.4,2518.3,3.97093]
[1730425764380,0.55,2518.4,2518.0,3.9713]
[1730425764381,1.5472,2518.4,2518.0,3.9713]
[1730425764593,1.5472,2518.4,2517.8,3.9717]
[1730425764594,6.069829,2518.4,2517.8,3.9717]
[1730425764906,10.040709,2518.4,2517.8,3.9717]
[1730425765092,0.9235,2518.3,2517.7,3.97187]
[1730425765295,4.52113,2518.2,2517.6,3.97203]
[1730425765588,0.55,2517.7,2517.2,3.97256]
[1730425765692,0.55,2517.7,2517.2,4.48329519]
[1730425765860,4.52196,2517.7,2517.2,0.51073519]
[1730425766055,0.55,2517.4,2517.0,4.0957819]
[1730425766276,0.55,2517.4,2517.1,3.97279]
[1730425766484,0.9407,2517.6,2517.0,4.0957819]
[1730425766485,0.55,2517.5,2517.0,4.0957819]
[1730425767595,0.55,2517.5,2517.2,3.97254]
[1730425769474,0.55,2517.8,2517.4,3.97226]
[1730425769667,0.55,2517.8,2517.1,0.07945093]
[1730425769668,0.9916,2517.9,2517.5,0.397226]
[1730425770016,4.522599,2518.4,2517.8,3.97162]
[1730425770017,0.9916,2518.1,2517.8,3.97162]
[1730425770372,1.0084,2518.3,2518.0,3.97131]
[1730425772309,1.0084,2518.3,2517.7,3.97181]
[1730425772603,0.55,2518.2,2517.7,3.97181]
[1730425772780,0.55,2518.2,2517.8,3.97166]
[1730425773866,3.97165,2517.9,2517.5,3.17709014]
[1730425774075,0.55,2518.2,2517.6,4.38273901]
[1730425774076,3.97117,2518.2,2517.6,4.38273901]
[1730425774310,3.97117,2518.2,2517.6,3.97195]
[1730425774476,3.97117,2518.2,2517.6,7.94389]
[1730425775400,0.55,2518.1,2517.6,3.97194]
[1730425775589,0.55,2518.2,2517.6,3.97194]
[1730425775904,4.5211,2518.2,2517.6,3.97194]
[1730425776124,4.5211,2518.2,2517.6,7.94387]
[1730425776410,4.5211,2518.2,2517.7,3.97187]
[1730425776912,5.471134,2518.2,2517.7,3.97186]
[1730425777094,1.500034,2518.2,2517.6,3.97193]
[1730425777284,0.55,2518.2,2517.8,3.9717]
[1730425777548,1.0084,2518.3,2518.2,3.97109]
[1730425777729,1.0084,2518.3,2518.1,3.97115]
[1730425778077,1.0084,2518.3,2518.1,7.9423]
[1730425778382,0.9446,2518.5,2518.1,3.97115]
[1730425778581,0.9446,2518.5,2518.1,7.94229]
[1730425778900,0.55,2518.4,2518.1,7.94229]
[1730425779400,0.55,2518.4,2518.1,3.97114]
[1730425779603,0.55,2518.4,2518.0,3.97132]
[1730425780502,0.55,2518.4,2518.1,3.97122]
[1730425780796,0.55,2518.4,2518.3,3.97093]
[1730425781562,0.55,2518.4,2518.2,3.97108]
[1730425782097,0.9446,2518.8,2518.2,0.397108]
[1730425782260,0.9446,2518.8,2517.7,0.82682945]
[1730425782261,0.9446,2518.4,2518.3,0.07940917]
[1730425782456,0.9446,2518.0,2517.7,0.29674363]
[1730425782663,3.97196,2517.7,2517.3,0.29674363]
[1730425783001,3.97196,2517.7,2517.0,5.85796135]
[1730425783002,4.91663,2517.6,2517.4,0.41327911]
[1730425783160,4.91663,2517.6,2517.0,8.0686019]
[1730425783359,0.55,2517.5,2517.0,4.0957319]
[1730425785336,4.5222,2517.5,2517.0,4.0957319]
[1730425785739,0.55,2517.5,2517.0,4.0957319]
[1730425786397,0.55,2517.5,2517.0,0.1228919]
[1730425787412,4.52225,2517.5,2517.0,0.1228919]
[1730425787847,3.97237,2517.4,2517.0,0.1228919]
[1730425788071,0.55,2517.3,2517.0,0.1228919]
[1730425788711,3.97266,2517.2,2517.0,0.1228919]
[1730425788938,5.50842,2517.1,2517.0,0.1228919]
[1730425791061,5.48512,2517.1,2517.0,0.1228919]
[1730425792427,8.48512,2517.1,2517.0,0.1228919]
[1730425792659,9.732898,2517.1,2517.0,0.1228919]
[1730425794055,9.742898,2517.1,2517.0,0.1228919]
[1730425794623,6.732898,2517.1,2517.0,0.1228919]
[1730425794824,5.48512,2517.1,2517.0,0.1228919]
[1730425797778,5.89905763,2517.1,2517.0,0.1228919]
[1730425799453,8.89905763,2517.1,2517.0,0.1228919]
[1730425801541,5.89905763,2517.1,2517.0,0.1228919]
[1730425803740,8.90905763,2517.1,2517.0,0.1228919]
[1730425803942,10.19822939,2517.1,2517.0,0.1228919]
[1730425804142,3.97444,2516.1,2515.5,0.9413]
[1730425804406,3.97519,2515.6,2515.5,0.9413]
[1730425804682,0.55,2515.7,2515.1,0.9413]
[1730425804883,4.52543,2515.5,2515.1,0.9413]
[1730425805188,3.97628,2515.0,2514.7,2.5895678]
[1730425805341,0.55,2515.1,2514.6,4.91806]
[1730425805546,3.97534,2515.6,2514.8,3.97645]
[1730425805750,0.55,2515.0,2514.7,1.44539519]
[1730425805943,0.55,2515.0,2514.5,0.1228919]
[1730425805944,3.97639,2514.9,2514.5,1.0641919]
[1730425806156,3.97677,2514.6,2514.5,0.1228919]
[1730425806355,4.52677,2514.6,2514.5,0.1228919]
[1730425806657,5.50287,2514.6,2514.5,0.1228919]
[1730425807225,8.50287,2514.6,2514.5,0.1228919]
[1730425807378,9.762831,2514.6,2514.5,0.1228919]
[1730425807720,12.95629922,2514.6,2514.5,1.9e-06]
[1730425808079,3.97839,2513.6,2512.9,3.97945]
[1730425808284,0.55,2513.5,2512.9,3.97945]
[1730425808483,0.55,2513.5,2512.7,3.97971]
[1730425808484,4.52864,2513.5,2512.7,3.97967]
[1730425808707,0.55,2513.5,2512.8,4.377567]
[1730425808913,0.55,2513.5,2512.8,0.397967]
[1730425809715,0.9861,2513.7,2512.8,0.397967]
[1730425809716,0.55,2513.1,2512.8,0.397967]
[1730425809914,4.52915,2513.1,2512.5,0.9413]
[1730425810124,0.55,2513.3,2512.5,0.9413]
[1730425810323,0.55,2513.3,2512.6,3.97991]
[1730425811216,0.55,2513.5,2512.6,3.97984]
[1730425811435,0.55,2513.5,2512.8,3.97952]
[1730425811616,0.55,2513.5,2512.9,4.377302]
[1730425811927,3.97893,2513.3,2512.6,3.0]
[1730425812138,0.55,2513.2,2512.6,6.97983]
[1730425812425,0.55,2513.2,2512.6,3.0]
[1730425812598,0.55,2513.2,2512.6,6.97979]
[1730425813223,0.55,2513.2,2512.7,3.97977]
[1730425813528,0.55,2513.4,2512.8,0.697977]
[1730425813686,7.95721,2513.5,2512.3,7.96067]
[1730425813687,0.55,2513.2,2512.3,7.96067]
[1730425813891,0.55,2513.0,2512.3,3.9803]
[1730425814124,0.55,2513.0,2512.3,4.870526]
[1730425814659,0.55,2513.0,2512.4,3.98025]
[1730425814952,4.5293,2513.0,2512.3,3.9803]
[1730425815159,0.55,2512.8,2512.2,3.9413]
[1730425815324,0.55,2512.8,2512.3,3.98039]
[1730425815519,0.55,2513.0,2512.3,7.96069]
[1730425815762,0.55,2513.0,2512.4,3.98024]
[1730425815763,4.52932,2513.0,2512.4,3.98024]
[1730425815959,0.55,2513.0,2512.4,3.98024]
[1730425816456,0.55,2513.0,2512.3,3.9803]
[1730425816657,0.55,2513.2,2512.5,3.97998]
[1730425816961,0.55,2512.9,2512.3,7.96059]
[1730425817134,0.55,2512.9,2512.4,3.98025]
[1730425817333,4.52925,2513.1,2512.4,7.96035]
[1730425817559,0.55,2513.1,2512.4,3.9801]
[1730425817718,0.55,2513.1,2512.5,3.97999]
[1730425818154,0.55,2513.1,2512.4,4.77227]
[1730425818368,0.55,2513.1,2512.4,3.98013]
[1730425818543,0.55,2512.9,2512.4,3.98013]
[1730425819120,0.55,2513.0,2512.5,3.98006]
[1730425819323,0.55,2513.0,2512.3,3.0]
[1730425819560,0.55,2512.8,2512.3,7.96069]
[1730425820169,0.55,2512.8,2512.4,3.98024]
[1730425820350,0.55,2512.8,2512.3,3.98028]
[1730425820657,0.55,2512.8,2512.4,3.98024]
[1730425820850,4.52934,2513.0,2512.4,3.98024]
[1730425821046,5.475299,2513.0,2512.4,3.98024]
[1730425821225,5.475299,2513.0,2512.3,3.98028]
[1730425821427,4.52962,2512.8,2512.0,4.1037619]
[1730425821623,3.98017,2512.5,2512.0,0.1228919]
[1730425821826,0.55,2512.4,2512.0,0.1228919]
[1730425822094,1.003017,2512.4,2512.0,0.1228919]
[1730425822267,4.53059,2512.2,2512.0,0.1228919]
[1730425822588,4.53073,2512.1,2512.0,0.1228919]
[1730425824495,1.05649771,2512.7,2512.1,3.98073]
[1730425824780,0.9877,2512.7,2512.3,3.98032]
[1730425825149,0.9877,2512.7,2512.1,3.98073]
[1730425825388,0.9877,2512.7,2512.2,3.98056]
[1730425825745,0.9877,2512.7,2512.1,3.98073]
[1730425825746,5.862269,2512.7,2512.1,3.98073]
[1730425825996,0.55,2512.6,2512.1,3.98073]
[1730425826352,3.01,2513.1,2512.4,3.98022]
[1730425826353,3.97926,2513.1,2512.4,3.98022]
[1730425826583,3.9796,2512.9,2512.3,3.98041]
[1730425826778,3.9796,2512.9,2512.0,0.1228919]
[1730425826779,0.9639,2512.8,2512.0,0.1228919]
[1730425826981,4.94463,2512.1,2512.0,0.1228919]
[1730425827486,7.94133,2512.1,2512.0,0.1228919]
[1730425827698,7.96133,2512.1,2512.0,0.1228919]
[1730425827875,7.96133,2512.1,2512.0,1.9e-06]
[1730425827876,8.51133,2512.1,2512.0,1.9e-06]
[1730425828196,0.55,2511.2,2510.9,3.98249]
[1730425828397,0.55,2511.2,2510.7,3.98286]
[1730425828552,0.55,2511.2,2510.8,3.98278]
[1730425828901,0.55,2511.5,2510.9,3.9825]
[1730425829191,0.55,2511.5,2511.0,4.24221955]
[1730425829391,0.55,2511.5,2511.2,3.98205]
[1730425829957,0.55,2511.5,2511.0,3.98239]
[1730425830157,4.53181,2511.5,2510.9,3.98251]
[1730425830600,0.55,2511.3,2510.8,3.98277]
[1730425830891,0.55,2511.3,2510.9,3.98253]
[1730425831272,1.102941,2511.3,2510.9,3.98253]
[1730425831468,0.55,2511.1,2510.7,0.949]
[1730425831700,0.55,2511.1,2510.8,3.98268]
[1730425831993,4.53201,2511.3,2510.8,3.98268]
[1730425832211,0.55,2511.3,2510.7,3.19346822]
[1730425832498,0.55,2511.3,2511.2,3.98215]
[1730425832792,0.55,2511.6,2511.1,3.98231]
[1730425833163,3.98176,2511.5,2510.9,3.98253]
[1730425833502,0.552936,2511.5,2510.7,4.90306]
[1730425833798,4.534656,2511.5,2510.7,8.88592]
[1730425834000,3.98172,2511.5,2510.7,8.88592]
[1730425834198,4.53163,2511.6,2510.8,3.98277]
[1730425834384,8.5133,2511.6,2510.8,3.98277]
[1730425834593,4.53163,2511.6,2510.8,3.98277]
[1730425834798,3.98197,2511.4,2510.7,3.98286]
[1730425834995,4.53209,2511.3,2510.5,6.98326]
[1730425835195,3.98197,2511.4,2510.6,1.01767282]
[1730425835196,0.55,2511.4,2510.6,1.01767282]
[1730425835371,0.55,2511.4,2510.3,0.9202]
[1730425835372,3.98266,2510.9,2510.3,0.9202]
[1730425835571,0.55,2510.9,2510.3,4.90378]
[1730425836001,0.55,2511.0,2510.3,8.88736]
[1730425836521,4.53304,2510.7,2510.0,0.9912]
[1730425836703,4.53374,2510.2,2509.3,3.98504]
[1730425837037,0.9418,2510.3,2509.1,3.98538]
[1730425837038,0.55,2509.6,2509.1,3.98538]
[1730425837259,0.55,2509.6,2508.5,0.01]
[1730425837260,0.55,2509.6,2508.3,3.98665]
[1730425837261,11.76095822,2509.6,2508.3,3.98665]
[1730425837407,11.76095822,2509.6,2507.8,3.98743]
[1730425837408,0.55,2508.6,2507.8,3.98743]
[1730425837611,0.55,2508.6,2507.9,3.98737]
[1730425837805,0.55,2508.6,2508.3,3.98664]
[1730425838005,1.0128,2509.1,2508.4,0.398664]
[1730425838244,3.98599,2508.8,2508.1,3.98703]
[1730425838446,3.98566,2509.0,2508.1,3.98694]
[1730425838620,3.98598,2508.8,2508.1,3.98694]
[1730425838821,1.0128,2509.1,2508.3,0.9559]
[1730425839020,3.98575,2509.0,2508.3,0.9559]
[1730425839316,1.0128,2509.1,2508.5,3.98642]
[1730425839526,0.55,2509.0,2508.5,3.98634]
[1730425839826,0.55,2509.0,2508.3,8.13602822]
[1730425840029,0.55,2508.8,2508.1,3.98697]
[1730425840346,4.53671,2508.4,2507.7,3.98765]
[1730425840643,4.53671,2508.4,2507.4,3.19346822]
[1730425840644,0.55,2508.0,2507.4,3.98808]
[1730425840840,0.55,2508.5,2507.8,3.98744]
[1730425841155,0.01,2509.0,2508.0,3.19346822]
[1730425841156,0.9957,2508.9,2508.0,3.19346822]
[1730425841303,0.55,2508.8,2508.3,3.98669]
[1730425842005,4.53606,2508.8,2508.1,3.98696]
[1730425842209,4.53654,2508.5,2507.8,1.0066]
[1730425842405,3.9872,2508.1,2507.4,1.0066]
[1730425842605,3.9872,2508.1,2507.0,0.1228919]
[1730425842606,3.98834,2507.4,2507.0,0.1228919]
[1730425842907,0.55,2507.8,2507.0,0.1228919]
[1730425842908,0.55,2507.1,2507.0,0.1228919]
[1730425843115,5.53437,2507.1,2507.0,0.1228919]
[1730425843332,9.497663,2507.1,2507.0,0.1228919]
[1730425843522,9.90192851,2507.1,2507.0,0.1228919]
[1730425844154,9.91192851,2507.1,2507.0,0.1228919]
[1730425844305,0.9821,2506.7,2505.7,3.19346822]
[1730425844512,0.9821,2506.7,2505.6,3.99106]
[1730425844513,1.39636551,2507.1,2505.9,3.99058]
[1730425844739,1.39636551,2507.1,2506.7,3.98919]
[1730425845041,3.98811,2507.5,2506.7,3.98919]
[1730425845042,4.97021,2507.5,2506.7,3.98919]
[1730425845380,4.97021,2507.5,2506.6,3.98934]
[1730425845558,3.98885,2507.0,2506.4,3.0]
[1730425845868,0.01,2507.4,2506.1,3.99024]
[1730425846077,3.0,2507.1,2505.9,0.9943]
[1730425846281,3.9891,2506.9,2506.0,3.99031]
[1730425846569,0.55,2507.0,2506.3,3.98993]
[1730425846874,0.55,2507.0,2506.5,3.98961]
[1730425847040,0.55,2507.0,2506.7,3.9893]
[1730425847369,0.55,2507.2,2506.6,3.9894]
[1730425847578,0.55,2507.3,2506.7,3.98927]
[1730425847745,4.53836,2507.3,2506.5,7.97913]
[1730425848072,4.53836,2507.3,2506.6,3.98945]
[1730425848232,3.98851,2507.2,2506.5,3.98952]
[1730425848447,0.55,2506.9,2506.1,3.9902]
[1730425848743,0.55,2506.9,2505.8,0.051629]
[1730425848744,0.55,2506.4,2505.8,0.051629]
[1730425849244,3.55,2506.6,2505.8,4.042319]
[1730425849568,0.55,2506.6,2506.0,3.99031]
[1730425849767,0.55,2506.5,2505.8,4.042309]
[1730425850092,0.55,2506.3,2505.8,4.042309]
[1730425850244,0.55,2506.5,2505.8,0.051629]
[1730425850584,7.54058,2505.9,2505.8,0.051629]
[1730425850782,8.54658,2505.9,2505.8,0.051629]
[1730425851287,8.55658,2505.9,2505.8,0.051629]
[1730425851973,8.55658,2505.9,2504.2,3.99328]
[1730425851974,1.3156,2504.8,2503.5,0.979]
[1730425852182,1.3156,2504.8,2504.1,3.99341]
[1730425852481,0.55,2504.8,2504.3,3.99301]
[1730425852849,0.55,2505.0,2504.3,3.99301]
[1730425853051,0.56,2505.0,2504.0,3.99357]
[1730425853277,0.55,2504.9,2504.4,3.99296]
[1730425853505,0.55,2505.1,2504.6,3.99253]
[1730425853670,0.55,2505.2,2504.9,3.99216]
[1730425853855,1.006,2505.8,2505.5,3.99119]
[1730425854065,3.99034,2506.1,2504.6,3.6142127]
[1730425854066,1.006,2506.1,2505.7,3.9909]
[1730425854278,1.006,2506.1,2505.1,3.99177]
[1730425854279,0.9334,2506.9,2506.4,3.98978]
[1730425854486,0.9334,2506.9,2506.6,3.98945]
[1730425854651,0.9334,2506.9,2506.4,3.98964]
[1730425854989,0.9334,2506.9,2506.1,3.99021]
[1730425855174,3.98914,2506.8,2506.2,3.98998]
[1730425855377,4.48738109,2506.8,2506.0,3.99035]
[1730425855690,0.49824109,2506.8,2506.4,3.98968]
[1730425855895,0.9334,2506.9,2506.6,3.98935]
[1730425856094,0.9334,2506.9,2506.4,3.98967]
[1730425856271,0.9334,2506.9,2506.4,7.97934]
[1730425856472,0.9334,2506.9,2506.4,3.98967]
[1730425856857,0.9334,2506.9,2506.3,3.98986]